bitfinex-derivatives/quotes_BTCF0:USTF0_20241010
["timestamp","ask_amount","ask_price","bid_price","bid_amount"]
[1728559292881,0.13026303,61221.0,61220.0,0.081758]
[1728559293069,0.04004126,61221.0,61220.0,0.081758]
[1728559293776,0.12179826,61221.0,61220.0,0.081758]
[1728559294188,0.12179826,61221.0,61220.0,0.084758]
[1728559294189,0.12279826,61221.0,61220.0,0.084758]
[1728559294373,0.12279822,61221.0,61220.0,0.084758]
[1728559296021,0.12179822,61221.0,61220.0,0.081758]
[1728559296182,0.22930291,61221.0,61220.0,0.086758]
[1728559296385,0.32053308,61221.0,61220.0,0.100758]
[1728559296879,0.31953308,61221.0,61220.0,0.086758]
[1728559297080,0.17398717,61221.0,61220.0,0.100758]
[1728559298879,0.083757,61221.0,61220.0,0.100758]
[1728559300282,0.083757,61221.0,61220.0,0.16588596]
[1728559302883,0.002,61221.0,61220.0,0.16588596]
[1728559303181,0.083757,61221.0,61220.0,0.16588596]
[1728559303588,0.002,61221.0,61220.0,0.100758]
[1728559305083,0.083757,61221.0,61220.0,0.100758]
[1728559307781,0.002,61221.0,61220.0,0.100758]
[1728559309578,0.083757,61221.0,61220.0,0.100758]
[1728559310879,0.083757,61221.0,61220.0,0.019]
[1728559311094,0.083757,61221.0,61220.0,0.0678896]
[1728559311284,0.083757,61221.0,61220.0,0.019]
[1728559311587,0.083757,61221.0,61220.0,0.06789223]
[1728559312186,0.083757,61221.0,61220.0,0.019]
[1728559314170,0.29677665,61221.0,61220.0,0.019]
[1728559314422,0.3368194,61221.0,61220.0,0.019]
[1728559314674,0.3368194,61221.0,61220.0,0.100758]
[1728559314872,0.17399062,61221.0,61220.0,0.100758]
[1728559316478,0.23263676,61221.0,61220.0,0.100758]
[1728559318592,0.23263676,61221.0,61220.0,0.019]
[1728559321992,0.083757,61221.0,61220.0,0.019]
[1728559324493,0.203757,61221.0,61220.0,0.019]
[1728559325695,0.203757,61221.0,61220.0,0.100758]
[1728559327090,0.083757,61221.0,61220.0,0.100758]
[1728559327287,0.203757,61221.0,61220.0,0.019]
[1728559327485,0.203757,61221.0,61220.0,0.06787496]
[1728559327693,0.203757,61221.0,61220.0,0.019]
[1728559328701,1.293797,61221.0,61220.0,0.019]
[1728559328996,1.84172802,61221.0,61209.0,0.08422144]
[1728559329194,0.201771,61210.0,61209.0,0.08422144]
[1728559329388,0.45547916,61210.0,61209.0,0.08422144]
[1728559329791,0.29200872,61210.0,61209.0,0.08422144]
[1728559330105,0.29200872,61210.0,61209.0,0.09122144]
[1728559330307,0.45540636,61210.0,61209.0,0.09122144]
[1728559330492,0.36200872,61210.0,61209.0,0.09122144]
[1728559330888,0.52640822,61210.0,61209.0,0.00945044]
[1728559331089,0.51006827,61210.0,61209.0,0.00945044]
[1728559331292,0.36300872,61210.0,61209.0,0.09222344]
[1728559331499,0.32006461,61210.0,61209.0,0.09222344]
[1728559331692,0.23929361,61210.0,61209.0,0.09222344]
[1728559331889,0.04204457,61210.0,61209.0,0.09222344]
[1728559332894,0.002,61210.0,61209.0,0.09222344]
[1728559333396,0.083771,61210.0,61209.0,0.09222344]
[1728559336993,0.083771,61210.0,61209.0,0.17377522]
[1728559337898,0.04285817,61210.0,61209.0,0.29807565]
[1728559338096,0.04285817,61210.0,61209.0,0.65855337]
[1728559339193,0.04285817,61210.0,61209.0,0.57700159]
[1728559339603,0.04285817,61210.0,61209.0,0.57696159]
[1728559340004,0.0233089,61213.0,61209.0,0.76696159]
[1728559340305,0.0233089,61213.0,61212.0,0.081769]
[1728559340306,0.081768,61213.0,61212.0,0.081769]
[1728559340498,0.271761,61218.0,61210.0,0.08139744]
[1728559340499,0.29552738,61218.0,61210.0,0.08139744]
[1728559340700,0.081765,61216.0,61215.0,0.081762]
[1728559340903,0.081765,61216.0,61215.0,0.442562]
[1728559341914,0.082765,61216.0,61215.0,0.445562]
[1728559342802,0.001,61216.0,61215.0,0.71695944]
[1728559342910,0.002,61216.0,61215.0,0.84477396]
[1728559343205,0.002,61216.0,61215.0,0.76337652]
[1728559343405,0.02369013,61222.0,61221.0,0.081753]
[1728559343605,0.081749,61229.0,61228.0,0.081747]
[1728559343806,0.081749,61229.0,61228.0,0.13055905]
[1728559343995,0.23060175,61229.0,61228.0,0.081747]
[1728559344814,0.42060175,61229.0,61228.0,0.081747]
[1728559345511,0.23060175,61229.0,61228.0,0.081747]
[1728559345908,0.081747,61228.0,61227.0,0.3608]
[1728559346209,0.35153392,61228.0,61227.0,0.3608]
[1728559346407,0.41017096,61228.0,61227.0,0.3608]
[1728559346710,0.14885338,61228.0,61227.0,0.3608]
[1728559346900,0.23060038,61228.0,61227.0,0.442549]
[1728559347295,0.23160038,61228.0,61227.0,0.442549]
[1728559347705,0.41111285,61228.0,61227.0,0.442549]
[1728559347904,0.41311285,61228.0,61227.0,0.442549]
[1728559348316,0.35447581,61228.0,61227.0,0.442549]
[1728559348606,0.17496334,61228.0,61227.0,0.442549]
[1728559351121,0.003,61228.0,61227.0,0.442549]
[1728559351308,0.003,61228.0,61227.0,0.508449]
[1728559352818,0.193,61228.0,61227.0,0.3608]
[1728559353018,0.274747,61228.0,61227.0,0.3608]
[1728559355707,0.081749,61227.0,61226.0,0.08175]
[1728559355911,0.081749,61227.0,61226.0,0.44255]
[1728559356922,0.082749,61227.0,61226.0,0.44655]
[1728559357523,0.083749,61227.0,61226.0,0.44955]
[1728559359617,0.083749,61227.0,61226.0,0.44935]
[1728559360918,0.083749,61227.0,61226.0,0.08855]
[1728559361227,0.083749,61227.0,61226.0,0.44935]
[1728559361724,0.083749,61227.0,61226.0,0.3678]
[1728559361918,0.116949,61227.0,61226.0,0.3678]
[1728559362511,0.236949,61227.0,61226.0,0.3678]
[1728559363021,0.236949,61227.0,61226.0,0.007]
[1728559363415,0.236949,61227.0,61226.0,0.08875]
[1728559365725,0.236949,61227.0,61226.0,0.007]
[1728559366328,0.41646147,61227.0,61226.0,0.007]
[1728559366523,0.38581516,61227.0,61226.0,0.007]
[1728559370328,0.34577656,61227.0,61226.0,0.007]
[1728559370521,0.38581532,61227.0,61226.0,0.007]
[1728559371115,0.35261532,61227.0,61226.0,0.007]
[1728559374129,0.203749,61227.0,61226.0,0.007]
[1728559381230,0.29397365,61227.0,61226.0,0.007]
[1728559381432,0.35261545,61227.0,61226.0,0.007]
[1728559384339,0.24378777,61227.0,61226.0,0.007]
[1728559385539,0.24378777,61227.0,61226.0,0.3678]
[1728559386035,0.24378777,61227.0,61226.0,0.007]
[1728559386240,0.24378777,61227.0,61226.0,0.3678]
[1728559386459,0.24378777,61227.0,61226.0,0.007]
[1728559386675,0.24378777,61227.0,61226.0,0.3678]
[1728559388340,0.24378777,61227.0,61226.0,0.007]
[1728559388735,0.24378777,61227.0,61226.0,0.44955]
[1728559389333,0.203749,61227.0,61226.0,0.2936638]
[1728559389544,0.203749,61227.0,61226.0,0.6544638]
[1728559392662,0.203749,61227.0,61226.0,0.2936638]
[1728559392858,0.203749,61227.0,61226.0,0.6544638]
[1728559393255,0.203749,61227.0,61226.0,0.44955]
[1728559394161,0.203749,61227.0,61226.0,0.08875]
[1728559395060,0.083749,61227.0,61226.0,0.08875]
[1728559395257,0.203749,61227.0,61226.0,0.08875]
[1728559397253,0.203749,61227.0,61226.0,0.44955]
[1728559404458,0.3526097,61227.0,61226.0,0.44955]
[1728559407565,0.3526095,61227.0,61226.0,0.44955]
[1728559407760,0.31257233,61227.0,61226.0,0.44955]
[1728559407958,0.35260943,61227.0,61226.0,0.08875]
[1728559408167,0.35260943,61227.0,61226.0,0.44955]
[1728559408860,0.29396989,61227.0,61226.0,0.08875]
[1728559409170,0.29396989,61227.0,61226.0,0.44955]
[1728559410161,0.29396989,61227.0,61226.0,0.3678]
[1728559410364,0.42371804,61227.0,61226.0,0.007]
[1728559410564,0.081757,61221.0,61220.0,0.0307]
[1728559410782,0.25194254,61221.0,61220.0,0.0307]
[1728559410962,0.29197964,61221.0,61220.0,0.0307]
[1728559411674,0.24,61221.0,61217.0,0.06536286]
[1728559411873,0.202757,61221.0,61220.0,0.004]
[1728559412174,0.322757,61221.0,61220.0,0.004]
[1728559412372,0.323757,61221.0,61220.0,0.004]
[1728559412668,0.85508412,61221.0,61213.0,0.04902569]
[1728559412872,0.081766,61214.0,61213.0,0.04900555]
[1728559413575,0.081767,61213.0,61212.0,0.04900555]
[1728559413779,0.201767,61213.0,61212.0,0.04900555]
[1728559414469,0.201767,61213.0,61209.0,0.14713586]
[1728559414470,0.081769,61212.0,61211.0,0.04900555]
[1728559414672,0.201769,61212.0,61211.0,0.04900555]
[1728559415087,0.201769,61212.0,61211.0,0.13077555]
[1728559415088,0.081769,61212.0,61211.0,0.13077555]
[1728559415268,0.201769,61212.0,61211.0,0.13077555]
[1728559415795,0.002,61213.0,61211.0,0.3608]
[1728559415965,0.001,61213.0,61212.0,0.081769]
[1728559416163,0.12,61215.0,61214.0,0.081766]
[1728559416362,0.12,61215.0,61214.0,0.13070917]
[1728559416571,0.12,61215.0,61214.0,0.081766]
[1728559417171,0.201765,61215.0,61214.0,0.081766]
[1728559418379,0.202765,61215.0,61214.0,0.081766]
[1728559418561,0.203765,61215.0,61214.0,0.081766]
[1728559426573,0.16285237,61215.0,61214.0,0.081766]
[1728559432081,0.081767,61213.0,61212.0,0.44215343]
[1728559432372,0.201767,61213.0,61212.0,0.44215343]
[1728559432569,0.201767,61213.0,61212.0,0.565803]
[1728559433077,0.202767,61213.0,61212.0,0.565803]
[1728559433581,0.29300785,61213.0,61212.0,0.3608]
[1728559434792,0.29400785,61213.0,61212.0,0.3608]
[1728559436091,0.081771,61210.0,61209.0,0.081771]
[1728559436275,0.081773,61209.0,61208.0,0.0314]
[1728559436593,0.17201708,61209.0,61208.0,0.113174]
[1728559436983,0.31899445,61209.0,61208.0,0.0314]
[1728559437289,0.31899654,61209.0,61208.0,0.0314]
[1728559437484,0.17201917,61209.0,61208.0,0.0314]
[1728559437685,0.29201917,61209.0,61208.0,0.0314]
[1728559437891,0.081782,61202.0,61201.0,0.113183]
[1728559438186,0.29203283,61202.0,61201.0,0.113183]
[1728559438490,0.43902554,61202.0,61201.0,0.0314]
[1728559438681,0.29203283,61202.0,61201.0,0.0314]
[1728559439479,0.29303283,61202.0,61201.0,0.0314]
[1728559439690,0.29403283,61202.0,61201.0,0.0314]
[1728559441751,0.203782,61202.0,61201.0,0.0314]
[1728559442285,0.203782,61202.0,61201.0,0.09670922]
[1728559442480,0.2275674,61202.0,61201.0,0.09670922]
[1728559444489,0.2275674,61202.0,61201.0,0.0314]
[1728559444691,0.2275674,61202.0,61201.0,0.03136]
[1728559449697,0.2275674,61202.0,61201.0,0.113143]
[1728559455289,0.2275674,61202.0,61201.0,0.03136]
[1728559456201,0.2275674,61202.0,61201.0,0.113143]
[1728559456793,0.31782683,61202.0,61201.0,0.113143]
[1728559458004,0.2676216,61202.0,61201.0,0.113143]
[1728559461697,0.39820109,61202.0,61201.0,0.113143]
[1728559462200,0.31782694,61202.0,61201.0,0.113143]
[1728559462511,0.48120708,61202.0,61201.0,0.113143]
[1728559462704,0.31782694,61202.0,61201.0,0.113143]
[1728559463608,0.27777274,61202.0,61201.0,0.113143]
[1728559463807,0.2275674,61202.0,61201.0,0.16208295]
[1728559464195,0.2275674,61202.0,61201.0,0.08029995]
[1728559464684,0.2275674,61202.0,61201.0,0.03136]
[1728559466609,0.2275674,61202.0,61201.0,0.09666922]
[1728559467203,0.2275674,61202.0,61201.0,0.17845222]
[1728559467533,0.2275674,61202.0,61201.0,0.113143]
[1728559478841,0.081783,61201.0,61200.0,0.00245077]
[1728559479143,0.2618254,61201.0,61200.0,0.00245077]
[1728559479340,0.41074961,61201.0,61200.0,0.00245077]
[1728559479536,0.23070721,61201.0,61200.0,0.00245077]
[1728559480237,0.23170721,61201.0,61200.0,0.00245077]
[1728559481349,0.23270721,61201.0,61200.0,0.00245077]
[1728559483756,0.23271313,61201.0,61200.0,0.00245077]
[1728559486848,0.083783,61201.0,61200.0,0.0838042]
[1728559489360,0.083783,61201.0,61200.0,0.00245077]
[1728559489547,0.083783,61201.0,61200.0,0.0838042]
[1728559490251,0.083783,61201.0,61200.0,0.00245077]
[1728559492844,0.203783,61201.0,61200.0,0.00245077]
[1728559493954,0.35271836,61201.0,61200.0,0.00245077]
[1728559498401,0.35271799,61201.0,61200.0,0.00245077]
[1728559498653,0.29404904,61201.0,61200.0,0.00245077]
[1728559499297,0.4739199,61201.0,61200.0,0.00245077]
[1728559499953,0.29404904,61201.0,61200.0,0.00245077]
[1728559501554,0.17404904,61201.0,61200.0,0.36325077]
[1728559501752,0.29404788,61201.0,61200.0,0.36325077]
[1728559501964,0.203783,61201.0,61200.0,0.36325077]
[1728559502457,0.203783,61201.0,61200.0,0.4446042]
[1728559502669,0.203783,61201.0,61200.0,0.36325077]
[1728559502958,0.203783,61201.0,61200.0,0.5263892]
[1728559504260,0.203783,61201.0,61200.0,0.44503577]
[1728559508959,0.29403828,61201.0,61200.0,0.44503577]
[1728559515368,0.29403828,61201.0,61200.0,0.36325077]
[1728559516064,0.45756755,61201.0,61200.0,0.36325077]
[1728559516263,0.2940438,61201.0,61200.0,0.36325077]
[1728559516853,0.3246438,61201.0,61200.0,0.36325077]
[1728559517058,0.234383,61201.0,61200.0,0.42865856]
[1728559517266,0.234383,61201.0,61200.0,0.06785856]
[1728559517469,0.234383,61201.0,61200.0,0.00245077]
[1728559519367,0.266183,61201.0,61200.0,0.00245077]
[1728559519566,0.266183,61201.0,61200.0,0.0515094]
[1728559523573,0.266183,61201.0,61200.0,0.04905863]
[1728559523964,0.266183,61201.0,61195.0,0.081791]
[1728559523965,0.08179,61196.0,61195.0,0.081791]
[1728559524557,0.33557993,61196.0,61195.0,0.081791]
[1728559525159,0.33657993,61196.0,61195.0,0.081791]
[1728559525673,0.33757993,61196.0,61195.0,0.081791]
[1728559526370,0.33758045,61196.0,61195.0,0.081791]
[1728559527872,0.1740567,61196.0,61195.0,0.081791]
[1728559530076,0.33758045,61196.0,61195.0,0.081791]
[1728559531171,0.1740567,61196.0,61195.0,0.081791]
[1728559531368,0.08379,61196.0,61195.0,0.081791]
[1728559531574,0.24720034,61196.0,61195.0,0.081791]
[1728559531782,0.33746704,61196.0,61195.0,0.081791]
[1728559531978,0.33746704,61196.0,61195.0,0.35473966]
[1728559531979,0.20627582,61196.0,61195.0,0.35473966]
[1728559532469,0.20627582,61196.0,61195.0,0.20631355]
[1728559532979,0.20527582,61196.0,61195.0,0.20631355]
[1728559533280,0.20627582,61196.0,61195.0,0.20631355]
[1728559536286,0.20627582,61196.0,61195.0,0.35439078]
[1728559536879,0.04286548,61196.0,61195.0,0.35439078]
[1728559538980,0.04286548,61196.0,61195.0,0.081791]
[1728559541483,0.16286548,61196.0,61195.0,0.081791]
[1728559546588,0.16286548,61196.0,61195.0,0.28781922]
[1728559546782,0.16286548,61196.0,61195.0,0.28784138]
[1728559547093,0.25312695,61196.0,61195.0,0.081791]
[1728559547586,0.25312695,61196.0,61195.0,0.442591]
[1728559547587,0.20565691,61196.0,61195.0,0.442591]
[1728559547787,0.23951376,61196.0,61195.0,0.475191]
[1728559548086,0.04205511,61196.0,61195.0,0.475191]
[1728559548288,0.13283018,61196.0,61195.0,0.475191]
[1728559548491,0.17288529,61196.0,61195.0,0.475191]
[1728559548690,0.04205161,61196.0,61195.0,0.475191]
[1728559549386,0.04205158,61196.0,61195.0,0.475191]
[1728559549882,0.11645457,61196.0,61195.0,0.475191]
[1728559550313,0.002,61196.0,61195.0,0.475191]
[1728559550499,0.002,61196.0,61195.0,0.835991]
[1728559551294,0.04205157,61196.0,61195.0,0.835991]
[1728559552385,0.13274987,61196.0,61195.0,0.835991]
[1728559552588,0.17280144,61196.0,61195.0,0.835991]
[1728559552986,0.17280144,61196.0,61195.0,0.114391]
[1728559553188,0.17280144,61196.0,61195.0,0.835991]
[1728559554083,0.13274987,61196.0,61195.0,1.05790839]
[1728559554286,0.13274987,61196.0,61195.0,0.95979238]
[1728559554999,0.13274987,61196.0,61195.0,0.835991]
[1728559557190,0.002,61196.0,61195.0,0.835991]
[1728559558492,0.002,61196.0,61195.0,0.114391]
[1728559558798,0.002,61196.0,61195.0,0.475191]
[1728559559093,0.002,61196.0,61195.0,0.59901187]
[1728559561191,0.002,61196.0,61195.0,0.68060652]
[1728559561586,0.002,61196.0,61195.0,0.59901187]
[1728559561787,0.002,61196.0,61195.0,0.68060662]
[1728559561992,0.002,61196.0,61195.0,0.59901187]
[1728559562391,0.002,61196.0,61195.0,0.68060258]
[1728559563414,0.002,61196.0,61195.0,0.59901187]
[1728559563793,0.002,61196.0,61195.0,0.68058988]
[1728559564594,0.002,61196.0,61195.0,0.31978988]
[1728559564801,0.002,61196.0,61195.0,0.68058988]
[1728559566697,0.002,61196.0,61195.0,0.59901187]
[1728559568188,0.002,61196.0,61195.0,0.71901187]
[1728559568604,0.002,61196.0,61195.0,0.35821187]
[1728559568805,0.002,61196.0,61195.0,0.71901187]
[1728559569000,0.002,61196.0,61195.0,0.595191]
[1728559569301,0.04205369,61196.0,61195.0,0.595191]
[1728559570094,0.13273656,61196.0,61195.0,0.595191]
[1728559570391,0.13273656,61196.0,61195.0,0.234391]
[1728559570706,0.17279025,61196.0,61195.0,0.595191]
[1728559570897,0.17279025,61196.0,61195.0,0.234391]
[1728559571095,0.17279025,61196.0,61195.0,0.475191]
[1728559571290,0.12836974,61197.0,61195.0,1.60364]
[1728559571508,0.1636018,61202.0,61198.0,0.081787]
[1728559571509,0.12836974,61199.0,61198.0,0.081787]
[1728559571699,0.1636018,61207.0,61202.0,0.081782]
[1728559571700,0.14725229,61204.0,61202.0,0.081782]
[1728559571901,0.14725229,61204.0,61203.0,0.483781]
[1728559572103,0.19744925,61204.0,61203.0,0.483781]
[1728559572310,0.19744925,61204.0,61203.0,0.473781]
[1728559573302,0.19844925,61204.0,61203.0,0.473781]
[1728559574897,0.19844925,61204.0,61203.0,0.475781]
[1728559574898,0.19944925,61204.0,61203.0,0.475781]
[1728559575600,0.05219696,61204.0,61203.0,0.475781]
[1728559575805,0.002,61204.0,61203.0,0.475781]
[1728559576193,0.002,61204.0,61203.0,0.49941843]
[1728559577097,0.1636018,61209.0,61208.0,0.081774]
[1728559577292,0.1636018,61209.0,61208.0,0.56631194]
[1728559577501,0.12,61210.0,61208.0,0.56631194]
[1728559577709,0.12,61210.0,61209.0,0.28711729]
[1728559578993,0.121,61210.0,61209.0,0.28811729]
[1728559579409,0.121,61210.0,61209.0,0.16437935]
[1728559579606,0.122,61210.0,61209.0,0.16437935]
[1728559579908,0.122,61210.0,61209.0,0.082773]
[1728559580902,0.122,61210.0,61209.0,0.443573]
[1728559584202,0.35266852,61210.0,61209.0,0.443573]
[1728559586106,0.47366816,61210.0,61209.0,0.443573]
[1728559587314,0.29401448,61210.0,61209.0,0.443573]
[1728559588014,0.47366816,61210.0,61209.0,0.443573]
[1728559588407,0.29401448,61210.0,61209.0,0.443573]
[1728559591910,0.21224348,61210.0,61209.0,0.443573]
[1728559592110,0.122,61210.0,61209.0,0.443573]
[1728559592922,0.122,61210.0,61209.0,0.443373]
[1728559593221,0.002,61210.0,61209.0,0.443373]
[1728559595719,0.002,61210.0,61209.0,0.082573]
[1728559596020,0.002,61210.0,61209.0,0.443373]
[1728559596409,0.002,61210.0,61209.0,0.49231261]
[1728559598421,0.002,61210.0,61209.0,0.443373]
[1728559599211,0.04204546,61210.0,61209.0,0.443373]
[1728559599413,0.25242157,61210.0,61209.0,0.443373]
[1728559599623,0.29246703,61210.0,61209.0,0.443373]
[1728559599822,0.29246703,61210.0,61209.0,0.082573]
[1728559600022,0.29246703,61210.0,61209.0,0.443373]
[1728559601517,0.29246637,61210.0,61209.0,0.443373]
[1728559605820,0.45580258,61210.0,61209.0,0.443373]
[1728559606324,0.45580267,61210.0,61209.0,0.443373]
[1728559607117,0.40560872,61210.0,61209.0,0.71459591]
[1728559607323,0.40360872,61210.0,61209.0,0.71459591]
[1728559607735,0.40360872,61210.0,61209.0,1.00003473]
[1728559608030,0.20338167,61210.0,61209.0,1.11178964]
[1728559608227,0.081756,61222.0,61221.0,0.081757]
[1728559608530,0.201756,61222.0,61221.0,0.56586441]
[1728559608725,0.201756,61222.0,61221.0,0.66383485]
[1728559609030,0.201756,61222.0,61221.0,0.78715301]
[1728559610328,0.211756,61222.0,61221.0,0.78715301]
[1728559611242,0.211756,61222.0,61221.0,0.91042488]
[1728559611532,0.220756,61222.0,61221.0,0.91042488]
[1728559611729,0.220756,61222.0,61221.0,1.03368078]
[1728559612131,0.220756,61222.0,61221.0,1.1152742]
[1728559612431,0.220756,61222.0,61221.0,0.9920183]
[1728559612633,0.220756,61222.0,61221.0,0.9102613]
[1728559612838,0.220756,61222.0,61221.0,0.5494613]
[1728559613229,0.340756,61222.0,61221.0,0.5494613]
[1728559613538,0.220756,61222.0,61221.0,0.5494613]
[1728559614226,0.38079957,61222.0,61221.0,0.5494613]
[1728559614632,0.26079957,61222.0,61221.0,0.5494613]
[1728559614830,0.38079957,61222.0,61221.0,0.5494613]
[1728559615632,0.31099157,61222.0,61221.0,0.5494613]
[1728559615831,0.40122724,61222.0,61221.0,0.5494613]
[1728559616035,0.4598762,61222.0,61221.0,0.5494613]
[1728559618134,0.4598762,61222.0,61221.0,0.42615389]
[1728559618338,0.5798762,61222.0,61221.0,0.32818345]
[1728559618541,0.4598762,61222.0,61221.0,0.32818345]
[1728559618836,0.5798762,61222.0,61221.0,0.32818345]
[1728559619226,0.4598762,61222.0,61221.0,0.32818345]
[1728559621030,0.3398762,61222.0,61221.0,0.32818345]
[1728559621331,0.4598762,61222.0,61221.0,0.68898345]
[1728559621728,0.40122724,61222.0,61221.0,0.68898345]
[1728559622131,0.31099157,61222.0,61221.0,0.68898345]
[1728559628447,0.31099157,61222.0,61221.0,0.44239342]
[1728559628448,0.220756,61222.0,61221.0,0.44239342]
[1728559628628,0.220756,61222.0,61221.0,0.08159342]
[1728559629434,0.220756,61222.0,61221.0,0.16335042]
[1728559631526,0.139,61222.0,61221.0,0.16335042]
[1728559633041,0.220755,61222.0,61221.0,0.16335042]
[1728559636332,0.220755,61222.0,61221.0,0.52415042]
[1728559637131,0.31944026,61222.0,61221.0,0.52415042]
[1728559637435,0.31944026,61222.0,61221.0,0.16335042]
[1728559637436,0.36962853,61222.0,61221.0,0.16335042]
[1728559637631,0.36962853,61222.0,61221.0,0.52415042]
[1728559638529,0.36962834,61222.0,61221.0,0.52415042]
[1728559643339,0.24962834,61222.0,61221.0,0.52415042]
[1728559643539,0.36962834,61222.0,61221.0,0.52415042]
[1728559644141,0.24962834,61222.0,61221.0,0.52415042]
[1728559644345,0.220755,61222.0,61221.0,0.52415042]
[1728559644847,0.100755,61222.0,61221.0,0.52415042]
[1728559645053,0.220755,61222.0,61221.0,0.52415042]
[1728559645752,0.019,61222.0,61221.0,0.52415042]
[1728559645941,0.139,61222.0,61221.0,0.52415042]
[1728559646142,0.019,61222.0,61221.0,0.52415042]
[1728559646647,0.139,61222.0,61221.0,0.52415042]
[1728559647946,0.139,61222.0,61221.0,0.57313665]
[1728559648148,0.019,61222.0,61221.0,0.57313665]
[1728559648646,0.019,61222.0,61221.0,0.52415042]
[1728559649054,0.019,61222.0,61221.0,0.452557]
[1728559650546,0.019,61222.0,61221.0,0.51787655]
[1728559650943,0.3265,61238.0,61221.0,1.52615955]
[1728559651154,0.3265,61238.0,61234.0,0.201739]
[1728559651155,0.02322945,61238.0,61234.0,0.201739]
[1728559651348,0.12,61235.0,61234.0,0.081739]
[1728559651546,0.12,61235.0,61229.0,0.04894739]
[1728559651547,0.24,61235.0,61226.0,0.04894739]
[1728559651748,0.201749,61227.0,61225.0,0.08175]
[1728559652147,0.08175,61226.0,61225.0,0.08175]
[1728559652852,0.08175,61226.0,61225.0,0.08575]
[1728559653251,0.001,61227.0,61225.0,0.004]
[1728559653551,0.001,61227.0,61226.0,0.08175]
[1728559654750,0.001,61227.0,61225.0,0.011]
[1728559654751,0.001,61226.0,61225.0,0.014]
[1728559654957,0.001,61226.0,61225.0,0.088751]
[1728559655645,0.14613471,61227.0,61226.0,0.08175]
[1728559656051,0.02613471,61227.0,61226.0,0.08175]
[1728559656255,0.14613471,61227.0,61226.0,0.08175]
[1728559657453,0.14513471,61227.0,61226.0,0.08175]
[1728559657856,0.14413471,61227.0,61226.0,0.08175]
[1728559658052,0.14513471,61227.0,61226.0,0.08175]
[1728559659355,0.23535096,61227.0,61226.0,0.08175]
[1728559659558,0.39888726,61227.0,61226.0,0.44255]
[1728559659860,0.23535096,61227.0,61226.0,0.44255]
[1728559660054,0.39861228,61227.0,61226.0,0.44255]
[1728559660355,0.21121625,61227.0,61226.0,0.44255]
[1728559660657,0.09121625,61227.0,61226.0,0.56255]
[1728559661260,0.09121625,61227.0,61226.0,0.44255]
[1728559663352,0.16103504,61227.0,61226.0,0.44255]
[1728559664459,0.16103504,61227.0,61226.0,0.08175]
[1728559664764,0.16103504,61227.0,61226.0,0.44255]
[1728559666659,0.16103504,61227.0,61226.0,0.08175]
[1728559666858,0.16103504,61227.0,61226.0,0.44255]
[1728559667159,0.21121567,61227.0,61226.0,0.44255]
[1728559667365,0.121,61227.0,61226.0,0.44255]
[1728559667967,0.121,61227.0,61226.0,0.50786955]
[1728559669171,0.121,61227.0,61226.0,0.44255]
[1728559670768,0.202749,61227.0,61226.0,0.44255]
[1728559674479,0.24278627,61227.0,61226.0,0.44255]
[1728559676273,0.3733984,61227.0,61226.0,0.08175]
[1728559677279,0.24278627,61227.0,61226.0,0.08175]
[1728559677984,0.3733984,61227.0,61226.0,0.08175]
[1728559678578,0.24278627,61227.0,61226.0,0.08175]
[1728559679271,0.04103727,61227.0,61226.0,0.20175]
[1728559679674,0.04103491,61227.0,61226.0,0.20175]
[1728559681570,0.001,61227.0,61226.0,0.20175]
[1728559683371,0.001,61227.0,61226.0,0.2834033]
[1728559683777,0.001,61227.0,61226.0,0.20175]
[1728559685984,0.001,61227.0,61226.0,0.56255]
[1728559688190,0.001,61227.0,61226.0,0.7662121]
[1728559689091,0.001,61227.0,61226.0,0.6442033]
[1728559689291,0.001,61227.0,61226.0,0.56255]
[1728559689486,0.05118029,61227.0,61226.0,0.56255]
[1728559689697,0.001,61227.0,61226.0,0.56255]
[1728559689987,0.0912146,61227.0,61226.0,0.56255]
[1728559691080,0.04103431,61227.0,61226.0,0.56255]
[1728559691881,0.09121237,61227.0,61226.0,0.56255]
[1728559692189,0.04103431,61227.0,61226.0,0.56255]
[1728559693887,0.04103255,61227.0,61226.0,0.56255]
[1728559694977,0.001,61227.0,61226.0,0.56255]
[1728559695383,0.11541039,61227.0,61226.0,0.56255]
[1728559695988,0.04103246,61227.0,61226.0,0.56255]
[1728559696490,0.001,61227.0,61226.0,0.68454376]
[1728559698087,0.14394756,61233.0,61232.0,0.081742]
[1728559698285,0.14394756,61233.0,61232.0,0.442542]
[1728559698686,0.22568856,61233.0,61232.0,0.442542]
[1728559699594,0.23968856,61233.0,61232.0,0.444542]
[1728559701289,0.23968856,61233.0,61232.0,0.06726828]
[1728559701290,0.35968856,61233.0,61232.0,0.06726828]
[1728559701685,0.081755,61222.0,61221.0,0.17334034]
[1728559701885,0.081755,61222.0,61221.0,0.091756]
[1728559701886,0.201755,61222.0,61221.0,0.091756]
[1728559702894,0.081763,61217.0,61216.0,0.081762]
[1728559703089,0.201763,61217.0,61216.0,0.081762]
[1728559703283,0.201763,61217.0,61216.0,0.091762]
[1728559703891,0.202763,61217.0,61216.0,0.100762]
[1728559704785,0.23435016,61217.0,61216.0,0.100762]
[1728559705594,0.23535016,61217.0,61216.0,0.112762]
[1728559707486,0.23535016,61217.0,61216.0,0.031]
[1728559707687,0.3497561,61217.0,61216.0,0.031]
[1728559708192,0.2353497,61217.0,61216.0,0.031]
[1728559708389,0.203763,61217.0,61216.0,0.031]
[1728559708985,0.203763,61217.0,61216.0,0.112763]
[1728559709496,0.23535062,61217.0,61216.0,0.112763]
[1728559711188,0.23534904,61217.0,61216.0,0.112763]
[1728559711589,0.203763,61217.0,61216.0,0.112763]
[1728559711791,0.203763,61217.0,61216.0,0.473563]
[1728559713499,0.203763,61217.0,61216.0,0.112763]
[1728559713693,0.203763,61217.0,61216.0,0.473563]
[1728559721516,0.203763,61217.0,61216.0,0.112763]
[1728559721719,0.203763,61217.0,61216.0,0.473563]
[1728559722420,0.203763,61217.0,61216.0,0.112763]
[1728559722626,0.203763,61217.0,61216.0,0.473563]